bitfinex-derivatives/quotes_SOLF0:USTF0_20250421
["timestamp","ask_amount","ask_price","bid_price","bid_amount"]
[1745252793541,9.07812249,137.95,137.93,7.2482]
[1745252793742,9.07812249,137.95,137.92,0.04744242]
[1745252793941,9.03102349,137.93,137.92,0.04744242]
[1745252794144,9.03102349,137.93,137.92,7.29634242]
[1745252797044,9.03102349,137.93,137.92,0.04744242]
[1745252797638,9.03102349,137.93,137.92,7.29634242]
[1745252798234,9.03102349,137.93,137.92,0.04744242]
[1745252799043,9.03102349,137.93,137.92,7.29634242]
[1745252799642,9.03102349,137.93,137.92,0.04744242]
[1745252800243,9.03102349,137.93,137.92,7.29634242]
[1745252800543,9.03102349,137.93,137.92,0.04744242]
[1745252800844,1.9658,137.94,137.92,0.04744242]
[1745252801046,1.9658,137.94,137.92,7.29634242]
[1745252801446,9.2139,137.94,137.92,7.29634242]
[1745252803443,9.2139,137.94,137.92,0.04744242]
[1745252804941,7.2484,137.93,137.92,0.04744242]
[1745252805247,9.03102349,137.93,137.92,0.04744242]
[1745252806847,16.27942349,137.93,137.92,0.04744242]
[1745252807548,9.03102349,137.93,137.92,0.04744242]
[1745252808047,9.2139,137.94,137.92,0.04744242]
[1745252808544,7.2484,137.93,137.92,0.04744242]
[1745252809846,9.03102349,137.93,137.82,27.66]
[1745252810045,9.03102349,137.88,137.83,9.03102349]
[1745252810349,7.2524,137.86,137.83,16.28442349]
[1745252810552,7.2524,137.86,137.83,7.2534]
[1745252811150,7.30037625,137.86,137.83,7.2534]
[1745252811353,7.30037625,137.86,137.82,36.69102349]
[1745252811354,7.2526,137.85,137.82,43.94512349]
[1745252811645,7.2526,137.85,137.8,3.985]
[1745252811646,9.07899974,137.86,137.8,9.03102349]
[1745252812050,7.2534,137.84,137.81,7.2545]
[1745252812250,36.73899974,137.86,137.79,36.69102349]
[1745252812447,9.03102349,137.84,137.79,34.9155]
[1745252812651,9.03102349,137.84,137.79,7.2555]
[1745252812853,0.05411216,137.83,137.79,7.2555]
[1745252813052,0.05411216,137.83,137.8,9.03102349]
[1745252813554,0.05411216,137.83,137.82,7.2542]
[1745252813956,0.05411216,137.83,137.8,9.03102349]
[1745252814153,0.05411216,137.83,137.79,9.03102349]
[1745252814655,0.05411216,137.83,137.82,7.2542]
[1745252815550,0.05411216,137.83,137.81,16.28552349]
[1745252815750,9.08513565,137.83,137.79,9.03102349]
[1745252816149,16.33913565,137.83,137.8,7.2549]
[1745252818057,16.33913565,137.83,137.81,7.2547]
[1745252818260,0.05411216,137.83,137.8,9.03102349]
[1745252818658,0.05411216,137.83,137.81,7.2543]
[1745252820260,0.05411216,137.83,137.82,7.2542]
[1745252821762,9.08513565,137.83,137.81,7.2546]
[1745252822165,9.08513565,137.83,137.8,7.255]
[1745252822560,16.33903565,137.83,137.8,7.255]
[1745252823365,16.33903565,137.83,137.81,7.2547]
[1745252824068,7.2542,137.82,137.79,7.2555]
[1745252824367,9.08513565,137.83,137.77,36.69102349]
[1745252824768,7.2545,137.82,137.77,36.69102349]
[1745252825468,7.2545,137.82,137.79,7.2555]
[1745252825766,9.03102349,137.81,137.77,36.69102349]
[1745252826067,9.03102349,137.81,137.79,7.2555]
[1745252826464,9.03102349,137.81,137.77,27.66]
[1745252826671,9.03102349,137.79,137.74,27.66]
[1745252826867,16.28692349,137.79,137.74,27.66]
[1745252827067,0.05345856,137.78,137.75,7.2574]
[1745252827270,9.03102349,137.77,137.71,27.66]
[1745252827469,9.03102349,137.77,137.71,36.69102349]
[1745252827669,0.05479718,137.75,137.71,36.69102349]
[1745252828070,0.05479718,137.75,137.73,9.03102349]
[1745252828271,11.04292349,137.8,137.73,9.03102349]
[1745252828470,11.04292349,137.8,137.75,9.03102349]
[1745252828671,11.04292349,137.8,137.79,7.2558]
[1745252828875,11.15212349,137.82,137.77,9.03102349]
[1745252829270,11.15212349,137.82,137.8,7.255]
[1745252829471,0.05027612,137.81,137.8,7.255]
[1745252834577,0.05027612,137.81,137.79,7.2555]
[1745252835879,0.05027612,137.81,137.8,7.2552]
[1745252837180,0.05027612,137.81,137.79,7.2555]
[1745252837381,0.05027612,137.81,137.78,0.0528826]
[1745252837984,0.05027612,137.81,137.8,7.2552]
[1745252841688,1.9363,137.86,137.84,7.2531]
[1745252842085,1.9363,137.86,137.8,27.68]
[1745252842291,9.1886,137.86,137.8,27.68]
[1745252842792,0.05243138,137.84,137.83,7.2534]
[1745252843292,0.05243138,137.84,137.82,0.05155854]
[1745252844493,0.05243138,137.84,137.82,7.30545854]
[1745252844894,0.05243138,137.84,137.82,0.05155854]
[1745252845095,7.2537,137.83,137.82,0.05155854]
[1745252846296,41.80019141,137.83,137.74,31.7601]
[1745252846485,43.87069141,137.83,137.74,31.7601]
[1745252846690,1.9441,137.82,137.74,31.7601]
[1745252847095,1.9441,137.82,137.77,7.2566]
[1745252847395,0.05032207,137.81,137.78,0.04717022]
[1745252847593,7.2558,137.79,137.78,0.04717022]
[1745252847992,27.66,137.79,137.71,29.782]
[1745252848292,41.80019141,137.79,137.71,29.782]
[1745252848595,7.2571,137.77,137.74,7.258]
[1745252849196,7.2574,137.76,137.74,7.258]
[1745252849590,0.04938652,137.77,137.71,43.92219141]
[1745252850394,7.30628652,137.77,137.71,43.92219141]
[1745252850791,7.30648652,137.77,137.71,29.782]
[1745252851695,7.30648652,137.77,137.74,7.258]
[1745252851893,7.2574,137.76,137.71,27.66]
[1745252852097,0.04938652,137.77,137.71,27.66]
[1745252852598,14.18957793,137.77,137.68,27.66]
[1745252852900,14.14019141,137.77,137.68,27.66]
[1745252853198,0.04598654,137.74,137.68,27.66]
[1745252853999,7.30448654,137.74,137.68,27.66]
[1745252854597,7.30448654,137.74,137.71,7.2597]
[1745252854796,7.30448654,137.74,137.68,27.66]
[1745252855293,0.04598654,137.74,137.66,2.0529]
[1745252855499,2.0588,137.73,137.65,41.80019141]
[1745252855688,9.3179,137.73,137.7,7.2601]
[1745252855892,0.05076365,137.7,137.65,41.80019141]
[1745252856088,2.0182,137.76,137.65,41.80019141]
[1745252856393,2.0588,137.75,137.69,14.14019141]
[1745252856595,2.0588,137.75,137.69,41.80019141]
[1745252856791,2.0588,137.75,137.69,27.66]
[1745252857097,2.0588,137.75,137.71,7.2598]
[1745252857098,7.2585,137.74,137.71,7.2598]
[1745252857397,0.05076695,137.74,137.71,0.04919419]
[1745252857698,14.14019141,137.73,137.71,0.04919419]
[1745252857898,27.66,137.73,137.71,0.04919419]
[1745252858101,34.9191,137.73,137.71,0.04919419]
[1745252858595,27.66,137.73,137.71,0.04919419]
[1745252859902,34.9194,137.73,137.71,0.04919419]
[1745252860205,27.66,137.73,137.71,0.04919419]
[1745252860502,7.2595,137.72,137.71,0.04919419]
[1745252860805,27.66,137.73,137.66,27.93489]
[1745252860806,41.80019141,137.73,137.66,27.93489]
[1745252861103,43.81549141,137.73,137.66,27.93489]
[1745252861304,7.2605,137.7,137.66,27.93489]
[1745252861504,14.14019141,137.71,137.66,0.27489]
[1745252861706,7.2611,137.69,137.67,7.2618]
[1745252861897,0.04783979,137.7,137.66,0.27489]
[1745252862304,2.14113979,137.7,137.66,0.27489]
[1745252862704,0.04783979,137.7,137.66,0.27489]
[1745252863004,0.04783979,137.7,137.69,7.261]
[1745252864303,41.82019141,137.76,137.67,27.68]
[1745252864498,1.9925,137.75,137.67,27.68]
[1745252864709,7.2593,137.73,137.7,7.2605]
[1745252864909,3.9962,137.75,137.67,27.68]
[1745252865307,0.05455676,137.72,137.7,0.04702703]
[1745252866209,0.05455676,137.72,137.71,7.2598]
[1745252868005,27.68,137.76,137.73,7.2589]
[1745252868310,27.68,137.79,137.73,7.2589]
[1745252868805,27.68,137.79,137.72,7.2592]
[1745252869008,27.68,137.79,137.71,27.68]
[1745252869200,7.2583,137.75,137.74,0.05565264]
[1745252871104,7.2595,137.72,137.67,29.7066]
[1745252871504,14.14019141,137.74,137.67,27.68]
[1745252871706,7.2611,137.69,137.67,27.68]
[1745252871908,29.6164,137.75,137.67,27.68]
[1745252871909,14.14019141,137.72,137.67,27.68]
[1745252872308,7.2614,137.69,137.68,0.04886479]
[1745252873011,7.2609,137.7,137.68,0.04886479]
[1745252873714,7.261,137.69,137.68,0.04886479]
[1745252879915,7.2625,137.67,137.64,27.66]
[1745252880212,43.91789141,137.71,137.64,27.66]
[1745252880910,7.2629,137.66,137.64,34.9234]
[1745252881212,43.91789141,137.71,137.61,0.30133]
[1745252881213,41.82019141,137.67,137.61,0.30133]
[1745252881410,7.2647,137.62,137.61,0.30133]
[1745252882215,7.2643,137.63,137.61,0.30133]
[1745252882614,14.19136062,137.65,137.61,0.30133]
[1745252882812,7.2638,137.64,137.61,0.30133]
[1745252883015,0.05116921,137.65,137.61,0.30133]
[1745252883515,7.31466921,137.65,137.62,7.2647]
[1745252884116,7.2638,137.64,137.61,7.56643]
[1745252884317,0.05116921,137.65,137.61,0.30133]
[1745252885615,7.2641,137.64,137.61,0.30133]
[1745252886315,14.19136062,137.65,137.61,0.30133]
[1745252888320,7.2647,137.62,137.59,7.266]
[1745252888717,7.31353156,137.62,137.59,7.266]
[1745252888918,7.2653,137.61,137.58,7.2667]
[1745252889115,0.04883156,137.62,137.57,27.68]
[1745252889922,7.31363156,137.62,137.59,7.2661]
[1745252890323,0.04883156,137.62,137.57,27.68]
[1745252891024,0.04883156,137.62,137.6,7.2654]
[1745252891222,0.04883156,137.62,137.57,27.68]
[1745252891524,0.04883156,137.62,137.57,41.82019141]
[1745252892325,0.04883156,137.62,137.57,27.68]
[1745252892728,0.04883156,137.62,137.6,7.2654]
[1745252893025,0.04883156,137.62,137.55,56.68484141]
[1745252893225,0.04883156,137.62,137.57,14.14019141]
[1745252893424,0.04883156,137.62,137.61,7.2653]
[1745252894321,0.04883156,137.62,137.55,42.14804141]
[1745252894523,27.72883156,137.62,137.55,28.00785]
[1745252894830,7.2655,137.61,137.55,28.00785]
[1745252895524,7.2658,137.6,137.55,28.00785]
[1745252895726,27.68,137.62,137.55,28.00785]
[1745252896026,0.04591971,137.59,137.58,7.2665]
[1745252896619,0.04591971,137.59,137.55,0.32785]
[1745252897027,7.2673,137.58,137.55,0.32785]
[1745252897224,14.18611112,137.59,137.55,0.32785]
[1745252897428,27.68,137.58,137.55,0.32785]
[1745252897628,7.2677,137.57,137.55,0.32785]
[1745252898126,0.04591971,137.59,137.55,0.32785]
[1745252898431,0.04591971,137.59,137.58,7.2668]
[1745252898730,0.04591971,137.59,137.55,0.32785]
[1745252899428,0.04591971,137.59,137.58,7.2668]
[1745252903528,0.04591971,137.59,137.55,0.32785]
[1745252904229,14.14019141,137.56,137.45,2.1154]
[1745252904423,7.2706,137.51,137.45,2.1154]
[1745252904731,0.05454306,137.52,137.45,2.1154]
[1745252904931,7.2709,137.51,137.45,2.1154]
[1745252905122,14.14019141,137.5,137.44,27.68]
[1745252905329,2.0237,137.51,137.44,27.68]
[1745252905528,0.04879329,137.48,137.44,27.68]
[1745252905725,0.04879329,137.48,137.46,7.2731]
[1745252905934,0.04879329,137.48,137.44,27.68]
[1745252906335,0.04879329,137.48,137.45,7.2736]
[1745252906534,0.04879329,137.48,137.44,27.68]
[1745252906930,0.04879329,137.48,137.41,2.0707]
[1745252906931,14.1889847,137.48,137.41,27.68]
[1745252907336,7.2736,137.46,137.42,7.275]
[1745252907538,16.1493847,137.48,137.42,7.275]
[1745252907732,7.2735,137.46,137.42,7.275]
[1745252907936,16.10059141,137.48,137.42,7.2752]
[1745252908231,14.14019141,137.46,137.4,8.54859965]
[1745252908537,29.7412,137.45,137.4,8.54859965]
[1745252908731,0.05166899,137.44,137.4,8.54859965]
[1745252908936,0.05166899,137.44,137.41,0.05236436]
[1745252910037,0.05166899,137.44,137.41,7.32786436]
[1745252910333,0.05166899,137.44,137.41,0.05236436]
[1745252911734,0.05166899,137.44,137.43,7.2748]
[1745252912429,0.05166899,137.44,137.42,27.7]
[1745252912430,0.05166899,137.44,137.42,7.2751]
[1745252913341,0.05166899,137.44,137.43,7.2748]
[1745252914340,0.05166899,137.44,137.41,0.05236436]
[1745252914938,7.2748,137.43,137.41,0.05236436]
[1745252915141,0.05166899,137.44,137.41,0.05236436]
[1745252915434,14.14019141,137.43,137.41,0.05236436]
[1745252915633,7.2753,137.42,137.41,0.05236436]
[1745252916146,7.2768,137.4,137.35,27.7]
[1745252916345,14.14019141,137.42,137.35,27.7]
[1745252916846,7.2767,137.4,137.35,27.7]
[1745252917044,14.14019141,137.42,137.35,27.7]
[1745252917238,14.14019141,137.42,137.33,4.0098]
[1745252917444,0.05035046,137.4,137.33,31.7298]
[1745252918345,7.32675046,137.4,137.33,31.7298]
[1745252918642,14.19054187,137.4,137.3,41.86019141]
[1745252918841,2.0905,137.39,137.3,27.72]
[1745252919245,7.2794,137.35,137.32,7.2806]
[1745252919641,28.96,137.35,137.28,2.04]
[1745252920241,28.96,137.35,137.24,619.10019141]
[1745252920242,0.05552699,137.33,137.24,619.10019141]
[1745252920442,14.14019141,137.32,137.24,604.96]
[1745252920742,0.04990512,137.3,137.24,28.96]
[1745252920947,7.2822,137.29,137.26,7.2834]
[1745252921250,0.04990512,137.3,137.24,28.96]
[1745252922047,0.04990512,137.3,137.28,7.2827]
[1745252922249,0.04990512,137.3,137.24,28.96]
[1745252922848,0.04990512,137.3,137.28,7.2824]
[1745252923547,0.04990512,137.3,137.29,7.2822]
[1745252924449,31.0459,137.36,137.28,28.96]
[1745252924643,28.96,137.36,137.28,28.96]
[1745252924844,36.2386,137.36,137.28,28.96]
[1745252925049,28.96,137.36,137.28,28.96]
[1745252925246,51.75828843,137.36,137.25,30.3417]
[1745252925447,1.9699,137.35,137.29,7.2817]
[1745252925648,0.05584494,137.32,137.29,7.33165934]
[1745252925945,0.05584494,137.32,137.29,0.04995934]
[1745252926143,0.05584494,137.32,137.29,7.33185934]
[1745252926350,22.79828843,137.3,137.14,14.5794]
[1745252926553,22.79828843,137.3,137.18,5.4439]
[1745252926554,28.98,137.29,137.18,5.4439]
[1745252926844,28.98,137.29,137.21,7.2863]
[1745252927044,28.98,137.29,137.18,34.4239]
[1745252927249,28.98,137.29,137.18,7.2878]
[1745252927250,22.79828843,137.27,137.18,7.2878]
[1745252927554,0.05476729,137.25,137.18,7.2878]
[1745252927849,28.98,137.24,137.19,7.2874]
[1745252928054,22.79828843,137.3,137.15,22.79828843]
[1745252928244,0.05322733,137.23,137.16,28.98]
[1745252928852,0.05322733,137.23,137.19,7.2872]
[1745252929153,0.05322733,137.23,137.16,28.98]
[1745252929952,0.05322733,137.23,137.19,7.287]
[1745252930147,0.05322733,137.23,137.2,28.98]
[1745252930550,0.05322733,137.23,137.21,7.286]
[1745252930749,0.05322733,137.23,137.2,28.98]
[1745252931046,51.77828843,137.3,137.2,28.98]
[1745252931250,7.2829,137.28,137.21,6.2091]
[1745252931553,22.79828843,137.33,137.21,6.2091]
[1745252931753,51.77828843,137.33,137.21,6.2091]
[1745252931954,6.2125,137.35,137.28,7.2824]
[1745252932150,28.98,137.34,137.28,7.2824]
[1745252932351,28.98,137.34,137.26,28.98]
[1745252932352,0.04864043,137.33,137.3,0.05503837]
[1745252932752,7.2811,137.31,137.3,0.05503837]
[1745252933252,7.2834,137.27,137.23,28.98]
[1745252933954,7.2834,137.27,137.23,36.265]
[1745252934355,7.33758578,137.26,137.23,36.265]
[1745252934555,0.05368578,137.26,137.23,36.265]
[1745252934952,0.05368578,137.26,137.23,28.98]
[1745252935557,7.33788578,137.26,137.23,36.2653]
[1745252935758,0.05368578,137.26,137.23,36.2653]
[1745252936256,0.05368578,137.26,137.24,7.2847]
[1745252936460,0.05368578,137.26,137.23,28.98]
[1745252936760,7.2846,137.25,137.2,29.0]
[1745252936953,0.05368578,137.26,137.2,29.0]
[1745252937352,0.05368578,137.26,137.25,7.2843]
[1745252939263,0.05368578,137.26,137.24,29.0]
[1745252939470,0.05368578,137.26,137.21,29.0]
[1745252939767,7.33778578,137.26,137.22,7.2856]
[1745252939969,7.33778578,137.26,137.21,29.0]
[1745252940560,0.05368578,137.26,137.22,7.2856]
[1745252940767,0.05368578,137.26,137.21,29.0]
[1745252940964,0.05368578,137.26,137.21,36.2862]
[1745252941469,0.05368578,137.26,137.22,7.2858]
[1745252941670,7.33758578,137.26,137.21,29.0]
[1745252941969,0.05368578,137.26,137.23,7.2854]
[1745252942168,7.33778578,137.26,137.23,7.2854]
[1745252942471,0.05368578,137.26,137.21,29.0]
[1745252942662,7.2855,137.23,137.21,29.0]
[1745252942969,0.05368578,137.26,137.21,29.0]
[1745252943968,0.05368578,137.26,137.18,33.0205]
[1745252944368,0.05368578,137.26,137.18,31.0026]
[1745252944671,0.05368578,137.26,137.2,7.2869]
[1745252944971,7.2858,137.23,137.2,7.2869]
[1745252945269,24.71918843,137.27,137.19,7.2874]
[1745252945469,7.2862,137.22,137.19,7.2874]
[1745252945775,0.04896195,137.23,137.18,31.0026]
[1745252946567,7.33456195,137.23,137.18,31.0026]
[1745252946871,7.33456195,137.23,137.2,7.2868]
[1745252947372,7.33456195,137.23,137.21,7.2864]
[1745252947572,7.33456195,137.23,137.18,31.0026]
[1745252947967,7.2862,137.22,137.18,31.0026]
[1745252948170,7.2862,137.22,137.18,29.0]
[1745252948371,0.04896195,137.23,137.18,29.0]
[1745252948666,7.2867,137.21,137.18,36.2878]
[1745252948970,7.2867,137.21,137.18,7.288]
[1745252949371,0.04896195,137.23,137.16,576.58]
[1745252949563,7.2864,137.22,137.16,576.58]
[1745252949767,0.05347196,137.21,137.16,576.58]
[1745252950075,0.05347196,137.21,137.19,7.2874]
[1745252950373,0.05347196,137.21,137.15,31.0539]
[1745252951175,7.34017196,137.21,137.18,7.2877]
[1745252951472,0.05347196,137.21,137.15,31.0539]
[1745252951864,0.05347196,137.21,137.2,7.287]
[1745252952480,7.2841,137.26,137.23,7.2851]
[1745252952773,33.4722,137.28,137.19,29.32]
[1745252953277,22.79828843,137.3,137.19,29.32]
[1745252953478,31.2634,137.32,137.27,7.283]
[1745252953872,0.05350401,137.31,137.27,7.283]
[1745252954080,7.2821,137.3,137.28,0.05563616]
[1745252954978,7.2822,137.29,137.28,0.05563616]
[1745252956277,22.79828843,137.3,137.23,29.32]
[1745252956477,22.79828843,137.3,137.23,36.6051]
[1745252956679,7.2841,137.26,137.23,36.6051]
[1745252957079,7.2841,137.26,137.23,29.32]
[1745252957483,7.33462058,137.26,137.23,29.32]
[1745252957669,0.05052058,137.26,137.24,7.2847]
[1745252958283,7.33432058,137.26,137.24,7.2847]
[1745252958480,0.05052058,137.26,137.25,7.2843]
[1745252958680,0.05052058,137.26,137.23,29.32]
[1745252958980,0.05052058,137.26,137.24,7.2846]
[1745252959481,7.33462058,137.26,137.23,36.6051]
[1745252959983,7.33462058,137.26,137.24,7.2848]
[1745252960181,0.05052058,137.26,137.24,7.2848]
[1745252961277,0.05052058,137.26,137.25,7.2843]
[1745252962383,0.05052058,137.26,137.24,7.2848]
[1745252963388,7.33432058,137.26,137.24,7.2848]
[1745252963684,0.05052058,137.26,137.24,7.2848]
[1745252964785,0.05052058,137.26,137.23,29.32]
[1745252965084,7.2844,137.25,137.23,29.32]
[1745252966083,7.33462058,137.26,137.23,36.6051]
[1745252966382,0.05052058,137.26,137.23,29.32]
[1745252966588,0.05052058,137.26,137.25,7.2843]
[1745252966883,14.25810999,137.33,137.23,43.57810999]
[1745252967275,7.2814,137.31,137.28,7.2824]
[1745252967474,14.25810999,137.33,137.23,43.57810999]
[1745252967677,14.25810999,137.33,137.29,7.2819]
[1745252967678,7.281,137.32,137.29,7.2819]
[1745252967883,14.25810999,137.33,137.23,43.57810999]
[1745252968181,0.04863318,137.32,137.29,0.049227]
[1745252968783,7.32953318,137.32,137.29,7.331227]
[1745252969086,7.32953318,137.32,137.29,0.049227]
[1745252969087,0.04863318,137.32,137.29,0.049227]
[1745252969385,0.04863318,137.32,137.31,7.2811]
[1745252970485,7.2783,137.37,137.31,29.3]
[1745252970686,45.67340999,137.39,137.31,29.3]
[1745252970889,31.4153,137.39,137.31,29.3]
[1745252971083,31.4153,137.39,137.36,7.2783]
[1745252971284,29.3,137.39,137.31,29.3]
[1745252971580,2.1007,137.4,137.38,7.2774]
[1745252971782,29.3,137.42,137.35,29.3]
[1745252971982,0.0521238,137.4,137.39,7.2769]
[1745252974485,0.0521238,137.4,137.38,7.2772]
[1745252974697,0.0521238,137.4,137.37,0.04603091]
[1745252974991,7.2774,137.38,137.37,0.04603091]
[1745252975191,14.25810999,137.39,137.32,29.3]
[1745252975392,7.2791,137.35,137.32,29.3]
[1745252975693,24.81149599,137.38,137.29,29.3]
[1745252976095,29.3,137.37,137.29,29.3]
[1745252976290,0.05245992,137.35,137.32,0.05116274]
[1745252976489,7.2798,137.34,137.32,0.05116274]
[1745252976891,0.05245992,137.35,137.32,0.05116274]
[1745252977097,7.2801,137.33,137.32,0.05116274]
[1745252983804,7.2798,137.34,137.32,0.05116274]
[1745252984302,0.05245992,137.35,137.32,0.05116274]
[1745252985404,7.33165992,137.35,137.32,0.05116274]
[1745252985605,0.05245992,137.35,137.32,0.05116274]
[1745252985902,7.33155992,137.35,137.33,7.2798]
[1745252986103,0.05245992,137.35,137.33,7.2798]
[1745252986505,0.05245992,137.35,137.32,7.33156274]
[1745252986804,0.05245992,137.35,137.32,0.05116274]
[1745252987003,7.2798,137.34,137.32,0.05116274]
[1745252987398,0.05245992,137.35,137.32,0.05116274]
[1745252987606,0.05245992,137.35,137.33,7.2801]
[1745252988602,7.33145992,137.35,137.33,7.2801]
[1745252988804,0.05245992,137.35,137.33,7.2801]
[1745252989002,0.05245992,137.35,137.34,7.2795]
[1745252991007,29.32,137.4,137.37,7.278]
[1745252991708,29.32,137.4,137.38,7.2773]
[1745252992008,29.3,137.43,137.34,2.0644]
[1745252992207,0.05131134,137.4,137.38,0.05065115]
[1745252992710,0.05131134,137.4,137.39,7.2766]
[1745252993913,7.274,137.45,137.38,0.05065115]
[1745252994410,7.2743,137.44,137.41,7.2756]
[1745252995109,7.32585833,137.44,137.41,7.33019202]
[1745252995913,7.2748,137.43,137.41,7.33019202]
[1745252996611,0.05155833,137.44,137.42,7.2753]
[1745252997108,0.05155833,137.44,137.41,0.05459202]
[1745252998315,7.2751,137.43,137.41,0.05459202]
[1745252998616,52.08859599,137.43,137.34,33.3738]
[1745252998813,7.2779,137.38,137.34,31.3644]
[1745252999114,22.78859599,137.4,137.34,29.3]
[1745252999316,14.23878447,137.39,137.34,29.3]
[1745252999518,14.23878447,137.39,137.34,36.5792]
[1745252999716,0.05426339,137.38,137.35,0.04636206]
[1745252999911,7.2781,137.37,137.35,0.04636206]
[1745253000216,0.05426339,137.38,137.35,0.04636206]
[1745253000418,7.2785,137.36,137.35,0.04636206]
[1745253000612,0.05426339,137.38,137.3,29.3]
[1745253000613,14.23878447,137.37,137.3,29.3]
[1745253000815,14.23878447,137.34,137.3,29.3]
[1745253001016,7.2792,137.35,137.32,7.2804]
[1745253001617,7.2792,137.35,137.31,7.2809]
[1745253001816,7.32757582,137.35,137.32,0.05540219]
[1745253002017,0.04837582,137.35,137.32,0.05540219]
[1745253002420,0.04837582,137.35,137.33,7.2798]
[1745253002719,0.04837582,137.35,137.32,0.05540219]
[1745253003319,22.79028152,137.41,137.32,0.05540219]
[1745253003514,22.79028152,137.41,137.3,29.3]
[1745253003915,30.06638152,137.41,137.37,7.2775]
[1745253004116,22.79028152,137.41,137.37,7.2775]
[1745253004424,7.2767,137.4,137.37,7.2775]
[1745253004723,0.04789793,137.4,137.38,7.32872112]
[1745253005021,7.2769,137.39,137.38,0.05132112]
[1745253005219,0.04789793,137.4,137.38,0.05132112]
[1745253005415,0.04789793,137.4,137.33,29.3]
[1745253005618,22.79028152,137.38,137.33,29.3]
[1745253006021,22.79028152,137.38,137.3,29.3]
[1745253006222,22.79028152,137.38,137.31,7.2808]
[1745253006422,22.79028152,137.38,137.3,29.3]
[1745253006621,0.05268565,137.36,137.33,0.05413922]
[1745253006815,7.28,137.34,137.33,0.05413922]
[1745253007322,22.79028152,137.35,137.3,29.3]
[1745253007818,54.20828152,137.35,137.27,606.12]
[1745253008023,54.20828152,137.35,137.29,7.282]
[1745253008525,0.04655365,137.33,137.28,7.2826]
[1745253009415,0.04655365,137.33,137.27,606.12]
[1745253010026,7.2809,137.32,137.29,7.2819]
[1745253011329,0.04655365,137.33,137.27,576.82]
[1745253012126,0.04655365,137.33,137.3,7.2813]
[1745253012525,0.04655365,137.33,137.27,576.82]
[1745253013426,7.32665365,137.33,137.3,7.2813]
[1745253013826,7.32665365,137.33,137.31,7.2811]
[1745253014029,7.2814,137.31,137.26,28.84]
[1745253014528,0.0499213,137.3,137.27,7.2832]
[1745253014828,0.0499213,137.3,137.26,28.84]
[1745253015228,0.0499213,137.3,137.28,7.2824]
[1745253015828,0.0499213,137.3,137.29,7.2822]
[1745253016027,0.0499213,137.3,137.26,28.84]
[1745253016228,0.0499213,137.3,137.28,7.2825]
[1745253017129,0.0499213,137.3,137.29,7.2822]
[1745253017326,0.0499213,137.3,137.26,28.84]
[1745253017727,0.0499213,137.3,137.28,7.2823]
[1745253017931,0.0499213,137.3,137.26,28.84]
[1745253018120,0.0499213,137.3,137.26,36.1235]
[1745253018320,0.0499213,137.3,137.26,28.84]
[1745253018629,0.0499213,137.3,137.24,359.0]
[1745253019028,7.2828,137.28,137.24,359.0]
[1745253019229,7.2828,137.28,137.25,7.2841]
[1745253019834,7.2825,137.29,137.23,28.84]
[1745253020129,0.0499213,137.3,137.23,28.84]
[1745253020625,0.0499213,137.3,137.29,7.2822]
[1745253020828,29.3,137.35,137.28,28.86]
[1745253021025,7.2801,137.33,137.3,7.2816]
[1745253021226,29.3,137.35,137.28,28.86]
[1745253021421,7.28,137.34,137.3,7.2816]
[1745253021628,29.3,137.35,137.3,7.2816]
[1745253021928,0.04766556,137.34,137.31,0.05303678]
[1745253022129,7.281,137.32,137.31,0.05303678]
[1745253024531,7.2803,137.33,137.31,0.05303678]
[1745253026033,7.2806,137.32,137.31,0.05303678]
[1745253028132,7.2825,137.29,137.25,28.86]
[1745253028332,22.79028152,137.3,137.24,28.86]
[1745253028532,22.79028152,137.3,137.24,36.1445]
[1745253028732,7.2836,137.27,137.24,36.1445]
[1745253029237,22.79028152,137.3,137.25,7.2842]
[1745253029435,0.04903881,137.27,137.25,7.2842]
[1745253029937,0.04903881,137.27,137.26,7.2838]